fUST/lending_fUST_20240413
["ID","MTS","AMOUNT","RATE_DAILY","PERIOD"]
[322451829,1713019532350,7009.31775895,0.00024902,2]
[322451831,1713019535627,19152.42794646,0.00024902,2]
[322451833,1713019553634,759.91683757,0.00024902,2]
[322451834,1713019556448,590.675508,0.00024846,2]
[322451838,1713019577698,1032.44807003,0.00022803,2]
[322451839,1713019681894,738.5584173,0.00024901,2]
[322451841,1713019741412,24900.0,0.00024898,2]
[322451894,1713019832757,-4622.9150959,0.00025496,2]
[322451895,1713019832767,-684.83558671,0.00025496,2]
[322451896,1713019832779,-329.16322832,0.00025496,2]
[322452005,1713019838769,-215.98297057,0.00025495,2]
[322452006,1713019838779,-4774.83496888,0.00025496,2]
[322452007,1713019838789,-3631.87555943,0.00025496,2]
[322452009,1713019839126,-1638.77616212,0.00025496,2]
[322452010,1713019839138,-1494.69948559,0.00025497,2]
[322452011,1713019839147,-300.0,0.00025518,2]
[322452012,1713019839156,-300.0,0.00025518,2]
[322452013,1713019839165,-2163.29861666,0.00025519,2]
[322452014,1713019839471,-555.82332966,0.00025519,2]
[322452015,1713019839484,-11646.63814418,0.00025519,2]
[322452017,1713019839494,-155.16869858,0.00026518,2]
[322452018,1713019839505,-409.78104126,0.00026653,2]
[322452019,1713019839514,-166.931423,0.00027397,2]
[322452020,1713019839524,-213.572846,0.00027397,2]
[322452021,1713019839533,-162.528393,0.00027397,2]
[322452022,1713019839544,-166.666666,0.00027397,2]
[322452023,1713019839554,-420.0,0.0002763,2]
[322452024,1713019839563,-171.88794,0.00027719,2]
[322452025,1713019839573,-1032.44807003,0.00027803,2]
[322452026,1713019839582,-234.97189047,0.00028,2]
[322452027,1713019839591,-420.0,0.0002807,2]
[322452028,1713019839601,-1554.7265166,0.00028148,2]
[322452029,1713019839610,-214.0904511,0.000282,2]
[322452030,1713019839619,-560.0,0.00029916,2]
[322452031,1713019839628,-437.0,0.0003,2]
[322452032,1713019839637,-437.0,0.00030411,2]
[322452033,1713019839647,-166.666666,0.00030603,2]
[322452034,1713019839656,-150.0,0.00030696,2]
[322452035,1713019839666,-587.0,0.00030877,2]
[322452036,1713019839675,-437.0,0.00031644,2]
[322452037,1713019839684,-150.0,0.00031696,2]
[322452038,1713019839694,-1308.15892502,0.00031998,4]
[322452039,1713019839704,-3323.33707912,0.00031998,4]
[322452040,1713019839713,-1015.08490572,0.00031999,2]
[322452041,1713019839723,-200.02817737,0.00031999,2]
[322452042,1713019839732,-71195.03970506,0.00032,2]
[322452043,1713019839742,-2915.95253585,0.00032545,4]
[322452044,1713019839752,-153.0,0.00032603,2]
[322452045,1713019839764,-153.0,0.00032603,2]
[322452046,1713019839773,-153.0,0.00032603,2]
[322452047,1713019839783,-153.0,0.00032603,2]
[322452048,1713019839795,-150.0,0.00032696,2]
[322452049,1713019839805,-182.82312585,0.00032776,2]
[322452050,1713019839814,-10100.999999,0.000328,2]
[322452051,1713019839823,-277.18296708,0.00032874,4]
[322452052,1713019839833,-584.97431304,0.00032874,2]
[322452053,1713019839843,-352.29816455,0.00032874,4]
[322452054,1713019839852,-309.79863785,0.00032874,4]
[322452055,1713019839862,-326.58964384,0.00032874,4]
[322452056,1713019839871,-242.54695494,0.00032875,4]
[322452057,1713019839881,-10587.96989216,0.00032875,2]
[322452058,1713019839890,-452.39033577,0.00032875,2]
[322452059,1713019839899,-285.86752145,0.00032875,2]
[322452060,1713019839909,-500.0,0.00032875,2]
[322452061,1713019839917,-489.24824666,0.00032875,2]
[322452062,1713019839929,-613.75620634,0.00032875,2]
[322452063,1713019839938,-500.0,0.00032875,2]
[322452064,1713019839948,-500.0,0.00032875,2]
[322452065,1713019839958,-197.20890076,0.00032875,2]
[322452066,1713019839968,-93546.55760401,0.00032876,5]
[322452067,1713019839977,-1014.05805107,0.00032876,4]
[322452068,1713019839986,-929.04577784,0.00032876,4]
[322452069,1713019839996,-3428.91549555,0.00032876,20]
[322452070,1713019840005,-501.64491208,0.00032876,7]
[322452071,1713019840014,-500.0,0.00032876,7]
[322452072,1713019840023,-500.0,0.00032876,7]
[322452073,1713019840033,-500.0,0.00032876,7]
[322452074,1713019840045,-500.0,0.00032876,7]
[322452075,1713019840055,-725.53,0.00032876,7]
[322452076,1713019840065,-500.0,0.00032876,7]
[322452077,1713019840075,-500.0,0.00032876,7]
[322452078,1713019840088,-500.0,0.00032876,7]
[322452079,1713019840097,-500.0,0.00032876,7]
[322452080,1713019840107,-500.0,0.00032876,7]
[322452081,1713019840116,-500.0,0.00032876,7]
[322452082,1713019840126,-500.0,0.00032876,7]
[322452083,1713019840139,-219.50666895,0.00032876,7]
[322452084,1713019840149,-426.30325555,0.00032876,7]
[322452085,1713019840158,-500.0,0.00032876,7]
[322452086,1713019840168,-500.0,0.00032876,7]
[322452087,1713019840179,-500.0,0.00032876,7]
[322452088,1713019840189,-500.0,0.00032876,7]
[322452089,1713019840199,-500.0,0.00032876,7]
[322452090,1713019840211,-500.0,0.00032876,7]
[322452091,1713019840221,-500.0,0.00032876,7]
[322452092,1713019840232,-887.0,0.00032876,7]
[322452093,1713019840242,-500.0,0.00032876,7]
[322452094,1713019840251,-521.08070212,0.00032876,7]
[322452095,1713019840268,-507.26959406,0.00032876,7]
[322452096,1713019840279,-500.0,0.00032876,7]
[322452098,1713019840290,-529.60230048,0.00032876,7]
[322452100,1713019840300,-849.41,0.00032876,7]
[322452101,1713019840309,-500.0,0.00032876,7]
[322452103,1713019840318,-500.0,0.00032876,7]
[322452104,1713019840327,-500.0,0.00032876,7]
[322452105,1713019840337,-507.93374897,0.00032876,7]
[322452106,1713019840347,-500.0,0.00032876,14]
[322452107,1713019840357,-500.0,0.00032876,7]
[322452108,1713019840368,-500.0,0.00032876,7]
[322452109,1713019840377,-500.0,0.00032876,7]
[322452110,1713019840386,-505.06340822,0.00032876,7]
[322452111,1713019840395,-500.0,0.00032876,7]
[322452112,1713019840405,-523.06514236,0.00032876,7]
[322452113,1713019840415,-502.28127508,0.00032876,7]
[322452114,1713019840424,-505.10434053,0.00032876,7]
[322452115,1713019840434,-500.0,0.00032876,7]
[322452116,1713019840443,-501.63398717,0.00032876,7]
[322452117,1713019840452,-500.0,0.00032876,7]
[322452118,1713019840461,-508.47353412,0.00032876,7]
[322452119,1713019840471,-500.0,0.00032876,7]
[322452120,1713019840480,-513.10504272,0.00032876,7]
[322452121,1713019840489,-500.83121732,0.00032876,7]
[322452122,1713019840498,-500.0,0.00032876,7]
[322452123,1713019840508,-500.0,0.00032876,7]
[322452124,1713019840517,-500.0,0.00032876,7]
[322452125,1713019840526,-500.0,0.00032876,7]
[322452126,1713019840536,-500.0,0.00032876,7]
[322452127,1713019840546,-500.0,0.00032876,7]
[322452128,1713019840555,-500.0,0.00032876,7]
[322452129,1713019840564,-500.0,0.00032876,7]
[322452130,1713019840573,-500.0,0.00032876,7]
[322452132,1713019840583,-500.0,0.00032876,7]
[322452133,1713019840592,-500.0,0.00032876,7]
[322452134,1713019840601,-500.0,0.00032876,7]
[322452135,1713019840611,-500.0,0.00032876,7]
[322452136,1713019840620,-500.0,0.00032876,7]
[322452137,1713019840630,-250.99373887,0.00032876,7]
[322452139,1713019840639,-501.91655438,0.00032876,7]
[322452140,1713019840648,-500.0,0.00032876,7]
[322452141,1713019840658,-500.0,0.00032876,7]
[322452142,1713019840667,-500.0,0.00032876,7]
[322452143,1713019840677,-500.0,0.00032876,7]
[322452144,1713019840686,-500.0,0.00032876,7]
[322452145,1713019840696,-322.12859759,0.00032876,7]
[322452146,1713019840705,-500.0,0.00032876,7]
[322452147,1713019840715,-1896.27,0.00032876,7]
[322452148,1713019840724,-500.0,0.00032876,7]
[322452149,1713019840733,-188.72163887,0.00032876,7]
[322452150,1713019840743,-500.0,0.00032876,7]
[322452151,1713019840752,-789.91,0.00032876,7]
[322452152,1713019840762,-585.30269564,0.00032876,7]
[322452153,1713019840771,-500.0,0.00032876,7]
[322452154,1713019840781,-500.0,0.00032876,7]
[322452155,1713019840792,-500.0,0.00032876,7]
[322452156,1713019840802,-500.0,0.00032876,7]
[322452157,1713019840812,-511.12393042,0.00032876,7]
[322452158,1713019840821,-500.0,0.00032876,7]
[322452159,1713019840831,-507.29060411,0.00032876,7]
[322452160,1713019840841,-500.0,0.00032876,7]
[322452162,1713019840852,-500.0,0.00032876,7]
[322452164,1713019840861,-500.0,0.00032876,7]
[322452165,1713019840871,-500.0,0.00032876,7]
[322452166,1713019840880,-500.0,0.00032876,7]
[322452167,1713019840890,-500.0,0.00032876,7]
[322452168,1713019840899,-500.0,0.00032876,7]
[322452169,1713019840909,-500.0,0.00032876,7]
[322452170,1713019840918,-500.0,0.00032876,7]
[322452171,1713019840928,-183.29234504,0.00032876,7]
[322452172,1713019840938,-412.49906291,0.00032876,7]
[322452173,1713019840948,-500.0,0.00032876,7]
[322452174,1713019840957,-500.0,0.00032876,7]
[322452175,1713019840966,-500.0,0.00032876,7]
[322452176,1713019840976,-500.0,0.00032876,7]
[322452177,1713019840986,-500.0,0.00032876,7]
[322452178,1713019840996,-507.12255338,0.00032876,7]
[322452179,1713019841006,-500.0,0.00032876,7]
[322452180,1713019841016,-500.0,0.00032876,7]
[322452181,1713019841025,-500.0,0.00032876,7]
[322452182,1713019841035,-559.75115527,0.00032876,7]
[322452183,1713019841046,-500.0,0.00032876,7]
[322452184,1713019841055,-500.0,0.00032876,7]
[322452185,1713019841065,-501.24410365,0.00032876,7]
[322452186,1713019841075,-500.0,0.00032876,7]
[322452187,1713019841084,-503.91995,0.00032876,7]
[322452188,1713019841094,-373.7590933,0.00032876,7]
[322452190,1713019841103,-394.69421239,0.00032876,7]
[322452192,1713019841113,-500.0,0.00032876,7]
[322452194,1713019841122,-500.0,0.00032876,7]
[322452195,1713019841135,-502.12859615,0.00032876,7]
[322452196,1713019841146,-500.0,0.00032876,7]
[322452197,1713019841155,-500.0,0.00032876,7]
[322452198,1713019841165,-503.17589893,0.00032876,7]
[322452199,1713019841174,-500.0,0.00032876,7]
[322452200,1713019841185,-500.0,0.00032876,7]
[322452201,1713019841195,-501.99555559,0.00032876,7]
[322452202,1713019841205,-500.0,0.00032876,7]
[322452203,1713019841215,-500.0,0.00032876,7]
[322452204,1713019841225,-500.0,0.00032876,7]
[322452205,1713019841235,-500.0,0.00032876,7]
[322452206,1713019841244,-506.63996995,0.00032876,7]
[322452207,1713019841253,-500.0,0.00032876,7]
[322452208,1713019841263,-500.0,0.00032876,7]
[322452209,1713019841273,-500.0,0.00032876,7]
[322452210,1713019841282,-508.3973965,0.00032876,7]
[322452211,1713019841294,-500.0,0.00032876,7]
[322452212,1713019841303,-500.0,0.00032876,7]
[322452213,1713019841313,-500.6711624,0.00032876,7]
[322452214,1713019841321,-500.0,0.00032876,7]
[322452215,1713019841331,-500.0,0.00032876,7]
[322452216,1713019841341,-500.0,0.00032876,7]
[322452217,1713019841350,-500.0,0.00032876,7]
[322452218,1713019841359,-502.32468298,0.00032876,7]
[322452219,1713019841369,-500.0,0.00032876,7]
[322452220,1713019841379,-500.0,0.00032876,7]
[322452221,1713019841388,-500.0,0.00032876,7]
[322452222,1713019841398,-502.83852805,0.00032876,7]
[322452223,1713019841407,-500.0,0.00032876,7]
[322452224,1713019841417,-500.0,0.00032876,7]
[322452225,1713019841427,-952.63,0.00032876,7]
[322452226,1713019841436,-500.0,0.00032876,7]
[322452227,1713019841445,-500.0,0.00032876,7]
[322452228,1713019841454,-500.0,0.00032876,7]
[322452229,1713019841464,-500.49675883,0.00032876,7]
[322452230,1713019841473,-500.0,0.00032876,7]
[322452231,1713019841483,-500.0,0.00032876,7]
[322452232,1713019841492,-500.0,0.00032876,7]
[322452233,1713019841501,-500.0,0.00032876,7]
[322452234,1713019841510,-500.0,0.00032876,7]
[322452235,1713019841519,-500.0,0.00032876,7]
[322452236,1713019841528,-219.02049985,0.00032876,7]
[322452237,1713019841538,-2806.94,0.00032876,7]
[322452238,1713019841550,-576.14087697,0.00032876,7]
[322452239,1713019841559,-3239.77,0.00032876,7]
[322452240,1713019841569,-512.9696895,0.00032876,7]
[322452241,1713019841578,-503.33800379,0.00032876,7]
[322452242,1713019841587,-500.0,0.00032876,7]
[322452243,1713019841597,-500.0,0.00032876,7]
[322452244,1713019841606,-1113.29,0.00032876,7]
[322452245,1713019841615,-500.0,0.00032876,7]
[322452246,1713019841624,-500.0,0.00032876,7]
[322452247,1713019841634,-500.0,0.00032876,7]
[322452248,1713019841643,-500.0,0.00032876,7]
[322452249,1713019841653,-1036.59,0.00032876,7]
[322452250,1713019841662,-503.93477192,0.00032876,7]
[322452251,1713019841672,-500.0,0.00032876,7]
[322452252,1713019841681,-501.98167046,0.00032876,7]
[322452253,1713019841690,-604.78920847,0.00032876,7]
[322452254,1713019841700,-504.2004915,0.00032876,7]
[322452255,1713019841709,-504.84227026,0.00032876,7]
[322452256,1713019841719,-500.0,0.00032876,7]
[322452257,1713019841728,-500.0,0.00032876,7]
[322452258,1713019841738,-500.0,0.00032876,7]
[322452259,1713019841747,-329.73914869,0.00032876,7]
[322452260,1713019841756,-2516.82,0.00032876,7]
[322452261,1713019841765,-500.0,0.00032876,7]
[322452262,1713019841774,-610.21924403,0.00032876,7]
[322452263,1713019841783,-500.0,0.00032876,7]
[322452264,1713019841794,-500.0,0.00032876,7]
[322452265,1713019841803,-520.17380218,0.00032876,7]
[322452266,1713019841813,-501.00411996,0.00032876,7]
[322452267,1713019841822,-514.55,0.00032876,7]
[322452268,1713019841831,-500.0,0.00032876,7]
[322452269,1713019841841,-500.0,0.00032876,7]
[322452270,1713019841850,-500.0,0.00032876,7]
[322452271,1713019841860,-500.0,0.00032876,7]
[322452272,1713019841869,-500.0,0.00032876,7]
[322452273,1713019841879,-799.46,0.00032876,7]
[322452274,1713019841888,-630.63,0.00032876,7]
[322452275,1713019841897,-500.0,0.00032876,7]
[322452276,1713019841909,-500.0,0.00032876,7]
[322452277,1713019841918,-500.0,0.00032876,7]
[322452278,1713019841927,-500.0,0.00032876,7]
[322452279,1713019841936,-1672.39,0.00032876,7]
[322452280,1713019841946,-500.0,0.00032876,7]
[322452281,1713019841955,-590.04462163,0.00032876,7]
[322452282,1713019841964,-500.0,0.00032876,7]
[322452283,1713019841973,-1789.62,0.00032876,7]
[322452284,1713019841983,-501.39451573,0.00032876,7]
[322452285,1713019842088,-524.81,0.00032876,7]
[322452286,1713019842099,-500.0,0.00032876,7]
[322452287,1713019842108,-500.20315181,0.00032876,7]
[322452288,1713019842118,-500.0,0.00032876,7]
[322452289,1713019842128,-500.0,0.00032876,7]
[322452290,1713019842142,-500.0,0.00032876,7]
[322452291,1713019842152,-500.0,0.00032876,7]
[322452292,1713019842161,-500.33791964,0.00032876,7]
[322452293,1713019842170,-597.54,0.00032876,7]
[322452294,1713019842181,-500.0,0.00032876,7]
[322452295,1713019842190,-275.83421792,0.00032876,7]
[322452296,1713019842199,-500.0,0.00032876,7]
[322452297,1713019842209,-500.0,0.00032876,7]
[322452298,1713019842220,-4543.4,0.00032876,7]
[322452299,1713019842230,-500.0,0.00032876,7]
[322452300,1713019842240,-500.0,0.00032876,7]
[322452301,1713019842250,-500.0,0.00032876,7]
[322452302,1713019842260,-500.0,0.00032876,7]
[322452303,1713019842269,-647.82821017,0.00032876,7]
[322452304,1713019842279,-1929.95,0.00032876,7]
[322452305,1713019842290,-634.47,0.00032876,7]
[322452306,1713019842299,-2033.7,0.00032876,7]
[322452307,1713019842308,-500.0,0.00032876,7]
[322452308,1713019842318,-500.0,0.00032876,7]
[322452309,1713019842327,-500.0,0.00032876,7]
[322452310,1713019842336,-500.0,0.00032876,7]
[322452311,1713019842345,-500.0,0.00032876,7]
[322452312,1713019842355,-500.0,0.00032876,7]
[322452313,1713019842366,-500.0,0.00032876,7]
[322452314,1713019842376,-500.0,0.00032876,7]
[322452315,1713019842385,-503.35510766,0.00032876,7]
[322452316,1713019842394,-500.0,0.00032876,7]
[322452317,1713019842403,-500.0,0.00032876,7]
[322452318,1713019842412,-871.72,0.00032876,7]
[322452319,1713019842421,-500.0,0.00032876,7]
[322452320,1713019842430,-500.0,0.00032876,7]
[322452321,1713019842440,-500.0,0.00032876,7]
[322452322,1713019842449,-374.25531236,0.00032876,7]
[322452323,1713019842459,-564.41,0.00032876,7]
[322452324,1713019842468,-506.14014559,0.00032876,7]
[322452325,1713019842477,-668.21,0.00032876,7]
[322452326,1713019842486,-638.94,0.00032876,7]
[322452327,1713019842496,-500.0,0.00032876,7]
[322452328,1713019842506,-500.0,0.00032876,7]
[322452329,1713019842516,-500.0,0.00032876,7]
[322452330,1713019842526,-500.0,0.00032876,7]
[322452331,1713019842535,-500.0,0.00032876,7]
[322452332,1713019842550,-794.91,0.00032876,7]
[322452333,1713019842559,-500.0,0.00032876,7]
[322452334,1713019842568,-500.0,0.00032876,7]
[322452335,1713019842578,-500.0,0.00032876,7]
[322452336,1713019842587,-500.0,0.00032876,7]
[322452337,1713019842596,-500.80063055,0.00032876,7]
[322452338,1713019842605,-500.0,0.00032876,7]
[322452339,1713019842614,-500.0,0.00032876,7]
[322452340,1713019842624,-500.0,0.00032876,7]
[322452341,1713019842633,-500.0,0.00032876,7]
[322452342,1713019842642,-500.0,0.00032876,7]
[322452343,1713019842652,-300.0,0.00032876,7]
[322452344,1713019842661,-752.26,0.00032876,7]
[322452345,1713019842671,-500.92296154,0.00032876,7]
[322452346,1713019842681,-500.0,0.00032876,7]
[322452347,1713019842690,-591.08396249,0.00032876,7]
[322452348,1713019842699,-500.0,0.00032876,7]
[322452349,1713019842708,-500.0,0.00032876,7]
[322452350,1713019842717,-500.0,0.00032876,7]
[322452351,1713019842726,-505.34467129,0.00032876,7]
[322452352,1713019842736,-500.0,0.00032876,7]
[322452353,1713019842745,-500.0,0.00032876,7]
[322452354,1713019842754,-500.0,0.00032876,7]
[322452355,1713019842764,-500.0,0.00032876,7]
[322452356,1713019842773,-500.0,0.00032876,7]
[322452357,1713019842782,-500.0,0.00032876,7]
[322452358,1713019842793,-500.0,0.00032876,7]
[322452359,1713019842803,-500.0,0.00032876,7]
[322452360,1713019842812,-500.0,0.00032876,7]
[322452361,1713019842821,-500.0,0.00032876,7]
[322452362,1713019842831,-416.00457762,0.00032876,7]
[322452363,1713019842840,-500.0,0.00032876,7]
[322452364,1713019842850,-500.0,0.00032876,7]
[322452365,1713019842859,-501.16823285,0.00032876,7]
[322452366,1713019842868,-500.0,0.00032876,7]
[322452367,1713019842878,-500.0,0.00032876,7]
[322452368,1713019842887,-500.0,0.00032876,7]
[322452369,1713019842897,-500.0,0.00032876,7]
[322452370,1713019842906,-500.0,0.00032876,7]
[322452371,1713019842915,-500.0,0.00032876,7]
[322452372,1713019842924,-1703.55,0.00032876,7]
[322452373,1713019842933,-500.0,0.00032876,7]
[322452374,1713019842943,-500.0,0.00032876,7]
[322452375,1713019842952,-539.62472715,0.00032876,7]
[322452376,1713019842961,-500.0,0.00032876,7]
[322452377,1713019842971,-557.83602978,0.00032876,7]
[322452378,1713019842980,-503.26559361,0.00032876,7]
[322452379,1713019842989,-521.87722051,0.00032876,7]
[322452380,1713019842999,-500.0,0.00032876,7]
[322452381,1713019843009,-1563.08,0.00032876,7]
[322452382,1713019843017,-501.42290715,0.00032876,7]
[322452383,1713019843026,-503.91738435,0.00032876,7]
[322452384,1713019843035,-500.0,0.00032876,7]
[322452385,1713019843046,-724.26,0.00032876,7]
[322452386,1713019843056,-543.07,0.00032876,7]
[322452387,1713019843065,-500.0,0.00032876,7]
[322452388,1713019843074,-500.0,0.00032876,7]
[322452389,1713019843083,-500.0,0.00032876,7]
[322452390,1713019843092,-937.69,0.00032876,7]
[322452391,1713019843101,-500.0,0.00032876,7]
[322452392,1713019843110,-24144.52,0.00032876,7]
[322452393,1713019843120,-500.0,0.00032876,7]
[322452394,1713019843129,-505.37526027,0.00032876,7]
[322452396,1713019843142,-500.0,0.00032876,7]
[322452397,1713019843151,-500.0,0.00032876,7]
[322452398,1713019843160,-1431.26,0.00032876,7]
[322452399,1713019843169,-500.0,0.00032876,7]
[322452400,1713019843179,-500.48162096,0.00032876,7]
[322452401,1713019843188,-500.0,0.00032876,7]
[322452402,1713019843197,-500.0,0.00032876,7]
[322452403,1713019843206,-500.0,0.00032876,7]
[322452404,1713019843216,-500.0,0.00032876,7]
[322452405,1713019843226,-500.0,0.00032876,7]
[322452406,1713019843235,-500.0,0.00032876,7]
[322452407,1713019843244,-500.0,0.00032876,7]
[322452408,1713019843254,-1924.79,0.00032876,7]
[322452409,1713019843263,-500.0,0.00032876,7]
[322452410,1713019843272,-637.09408538,0.00032876,7]
[322452411,1713019843283,-8122.62,0.00032876,7]
[322452412,1713019843297,-500.0,0.00032876,7]
[322452413,1713019843310,-500.0,0.00032876,7]
[322452414,1713019843323,-500.0,0.00032876,7]
[322452415,1713019843336,-500.0,0.00032876,7]
[322452416,1713019843347,-500.0,0.00032876,7]
[322452417,1713019843357,-881.96,0.00032876,7]
[322452418,1713019843369,-500.0,0.00032876,7]
[322452420,1713019843380,-978.06,0.00032876,7]
[322452421,1713019843392,-552.97227873,0.00032876,7]
[322452422,1713019843404,-500.0,0.00032876,7]
[322452424,1713019843416,-500.0,0.00032876,7]
[322452425,1713019843429,-1190.99,0.00032876,2]
[322452426,1713019843441,-500.0,0.00032876,7]
[322452427,1713019843454,-515.26721432,0.00032876,7]
[322452428,1713019843465,-1328.30908409,0.00033,30]
[322452429,1713019843476,-1000.0,0.00033,4]
[322452430,1713019843487,-182.82312583,0.0003305,2]
[322452431,1713019843501,-687.50427823,0.00033148,4]
[322452432,1713019843512,-500.0,0.00033149,7]
[322452433,1713019843524,-500.0,0.00033149,7]
[322452434,1713019843535,-500.0,0.00033149,7]
[322452435,1713019843549,-500.0,0.0003315,7]
[322452436,1713019843561,-522.45962337,0.0003315,7]
[322452437,1713019843573,-725.53,0.0003315,7]
[322452438,1713019843585,-500.0,0.0003315,7]
[322452439,1713019843594,-617.97979416,0.0003315,7]
[322452440,1713019843605,-849.41,0.0003315,7]
[322452441,1713019843616,-500.0,0.0003315,7]
[322452442,1713019843629,-500.0,0.0003315,7]
[322452443,1713019843641,-500.0,0.0003315,7]
[322452444,1713019843651,-500.0,0.0003315,7]
[322452445,1713019843664,-500.0,0.0003315,7]
[322452446,1713019843675,-500.0,0.0003315,7]
[322452447,1713019843686,-500.0,0.0003315,7]
[322452448,1713019843698,-500.0,0.0003315,7]
[322452449,1713019843710,-500.0,0.0003315,7]
[322452450,1713019843722,-500.0,0.0003315,7]
[322452451,1713019843735,-502.09873569,0.0003315,7]
[322452453,1713019843746,-500.0,0.0003315,7]
[322452455,1713019843759,-1896.27,0.0003315,7]
[322452456,1713019843771,-242.15952462,0.0003315,7]
[322452457,1713019843784,-789.91,0.0003315,7]
[322452459,1713019843797,-511.58418896,0.0003315,7]
[322452460,1713019843808,-500.0,0.0003315,7]
[322452461,1713019843820,-500.0,0.0003315,7]
[322452462,1713019843830,-500.0,0.0003315,7]
[322452463,1713019843840,-151.0,0.0003315,2]
[322452464,1713019843850,-151.0,0.0003315,2]
[322452465,1713019843860,-500.0,0.0003315,7]
[322452466,1713019843870,-500.0,0.0003315,7]
[322452467,1713019843881,-500.0,0.0003315,7]
[322452468,1713019843892,-343.83564179,0.0003315,7]
[322452469,1713019843903,-500.0,0.0003315,7]
[322452470,1713019843913,-504.09628153,0.0003315,7]
[322452471,1713019843926,-500.0,0.0003315,7]
[322452472,1713019843936,-500.0,0.0003315,7]
[322452473,1713019843946,-151.0,0.0003315,2]
[322452474,1713019843956,-500.0,0.0003315,7]
[322452475,1713019843966,-500.0,0.0003315,7]
[322452476,1713019843976,-500.0,0.0003315,7]
[322452477,1713019843986,-151.0,0.0003315,2]
[322452478,1713019843996,-151.0,0.0003315,2]
[322452479,1713019844007,-500.0,0.0003315,7]
[322452480,1713019844017,-507.89043381,0.0003315,7]
[322452481,1713019844027,-500.0,0.0003315,7]
[322452482,1713019844038,-500.0,0.0003315,7]
[322452483,1713019844050,-375.0726596,0.0003315,7]
[322452484,1713019844060,-500.0,0.0003315,7]
[322452485,1713019844070,-508.76774149,0.0003315,7]
[322452487,1713019844081,-151.0,0.0003315,2]
[322452489,1713019844091,-500.0,0.0003315,7]
[322452490,1713019844102,-952.63,0.0003315,7]
[322452491,1713019844113,-500.0,0.0003315,7]
[322452492,1713019844123,-500.0,0.0003315,7]
[322452493,1713019844137,-500.0,0.0003315,7]
[322452494,1713019844147,-151.0,0.0003315,2]
[322452495,1713019844157,-500.0,0.0003315,7]
[322452496,1713019844168,-504.24950144,0.0003315,7]
[322452497,1713019844179,-263.05878435,0.0003315,7]
[322452498,1713019844190,-2806.94,0.0003315,7]
[322452499,1713019844201,-3239.77,0.0003315,7]
[322452500,1713019844212,-1113.29,0.0003315,7]
[322452501,1713019844223,-485.61008657,0.0003315,7]
[322452502,1713019844234,-1036.59,0.0003315,7]
[322452503,1713019844244,-500.0,0.0003315,7]
[322452504,1713019844255,-500.0,0.0003315,7]
[322452505,1713019844265,-2516.82,0.0003315,7]
[322452506,1713019844276,-500.0,0.0003315,7]
[322452507,1713019844287,-514.55,0.0003315,7]
[322452508,1713019844299,-500.0,0.0003315,7]
[322452509,1713019844309,-500.0,0.0003315,7]
[322452510,1713019844320,-500.0,0.0003315,7]
[322452511,1713019844330,-500.0,0.0003315,7]
[322452512,1713019844341,-799.46,0.0003315,7]
[322452513,1713019844352,-630.63,0.0003315,7]
[322452514,1713019844363,-500.0,0.0003315,7]